Workbook

Sheet Index
C1: JGN Reference tariffs and customer outcomes
C2: Index
B5: Copyright Jemena Limited. All rights reserved. Jemena is not liable for any loss caused by reliance on this document.
C7: JGN has completed Template 21 using the fixed percentages as required. However, this appendix calculates the customer impacts for each customer ‘archetype’ using our proposed network tariffs for the 2015-20 period. JGN considers these calculations better reflect the customer impacts for each customer ‘archetype’ given: 1. It uses movements in proposed tariff components (rather using than broad movements in revenues to calculate changes in network bills). This captures the effect of our proposed tariff strategies. 2. It does not rely on a fixed network percentage of a customer bill
B16: Model Index
C18: Description of model | D18: This model estimates the customer outcomes from JGN reference tariffs
C20: Sheet Name | D20: Sheet Description
C21: Input|2013-14 tariffs | D21: Inputs the JGN tariffs by tariff basket for the year 2013-14
C22: Input|2014-15 tariffs | D22: Inputs the JGN tariffs by tariff basket for the year 2014-15
C23: Input|2015-16 tariffs | D23: Inputs the JGN tariffs by tariff basket for the year 2015-16
C24: Input|2016-17 tariffs | D24: Inputs the JGN tariffs by tariff basket for the year 2016-17
C25: Input|2017-18 tariffs | D25: Inputs the JGN tariffs by tariff basket for the year 2017-18
C26: Input|2018-19 tariffs | D26: Inputs the JGN tariffs by tariff basket for the year 2018-19
C27: Input|2019-20 tariffs | D27: Inputs the JGN tariffs by tariff basket for the year 2019-20
C28: Input|Escalators | D28: Inputs the historical and forecast CPI assumptions based on RBA's data
C29: Input|2014-15 calcs | D29: Inputs the calculations of revenues for the year 2014-15
C30: Calc|Customer outcomes | D30: Calculates the customer outcomes on tariffs
C32: Version Control | D32: Developer | E32: Comments | F32: Date
C33: Version 1 | D33: Jemena Gas Networks | E33: Submission model | F33: 2014-06-30
B36: End

Sheet Input|2013-14 tariffs
C1: =Index!$C$1 -> JGN Reference tariffs and customer outcomes
C2: =Index!$C$21 -> Input|2013-14 tariffs
D4: Source | E4: Unit | F4: Basis
B6: Copyright Jemena Limited. All rights reserved. Jemena is not liable for any loss caused by reliance on this document.
B8: Input | Haulague and Reference Tariffs
C10: Tariff Type | F10: Demand Capacity | K10: Demand Capacity Distance | P10: Pressure Reduction | U10: Demand Throughput - DT | X10: Demand Throughput - DMT | AB10: Metering - Single Meter | AG10: Metering Double Meter | AL10: Fixed charge | AM10: Basic Metering Volume | AO10: Volume Market | AU10: Ancillary Services
C11: Tariff Block | F11: Block 1 | G11: Block 2 | H11: Block 3 | I11: Block 4 | J11: Block 5 | K11: Block 1 | L11: Block 2 | M11: Block 3 | N11: Block 4 | O11: Block 5 | P11: Block 1 | Q11: Block 2 | R11: Block 3 | S11: Block 4 | T11: Block 5 | U11: Block 1 | V11: Block 2 | W11: Block 3 | X11: Fixed | Y11: Block 1 | Z11: Block 2 | AA11: Block 3 | AB11: MHQ < 10 GJ/hr | AC11: 10 to < 50 GJ/hr | AD11: 50 to < 100 GJ/hr | AE11: 100 to < 1000 GJ/hr | AF11: 1000GJ/hr and greater | AG11: MHQ < 10 GJ/hr | AH11: 10 to < 50 GJ/hr | AI11: 50 to < 100 GJ/hr | AJ11: 100 to < 1000 GJ/hr | AK11: 1000GJ/hr and greater | AM11: Fixed | AN11: Variable | AO11: Band 1 | AP11: Band 2 | AQ11: Band 3 | AR11: Band 4 | AS11: Band 5 | AT11: Band 6 | AU11: Requests For Service | AV11: Temporary Disconnections | AW11: Permanent Disconnection | AX11: Decommission small meter | AY11: Decommission large meter
C12: Unit | F12: $/GJ of CD pa | G12: $/GJ of CD pa | H12: $/GJ of CD pa | I12: $/GJ of CD pa | J12: $/GJ of CD pa | K12: $/GJ of CD x dist | L12: $/GJ of CD x dist | M12: $/GJ of CD x dist | N12: $/GJ of CD x dist | O12: $/GJ of CD x dist | P12: $/GJ of CD pa | Q12: $/GJ of CD pa | R12: $/GJ of CD pa | S12: $/GJ of CD pa | T12: $/GJ of CD pa | U12: $/GJ | V12: $/GJ | W12: $/GJ | X12: $/Year | Y12: $/GJ | Z12: $/GJ | AA12: $/GJ | AB12: $/Year | AC12: $/Year | AD12: $/Year | AE12: $/Year | AF12: $/Year | AG12: $/Year | AH12: $/Year | AI12: $/Year | AJ12: $/Year | AK12: $/Year | AL12: $/Year | AM12: $/Year | AN12: $/GJ | AO12: $/GJ | AP12: $/GJ | AQ12: $/GJ | AR12: $/GJ | AS12: $/GJ | AT12: $/GJ | AU12: $/Hr | AV12: $/Disconnection/Meter set | AW12: $/Disconnection/Meter set | AX12: $/Decommission/Meter | AY12: $/Decommission/Meter
C14: Volume Throughput
C15: Volume Coastal | D15: JGN | AL15: 27.62 | AM15: 12.4 | AN15: 0.449 | AO15: 21.43 | AP15: 8.302 | AQ15: 7.978 | AR15: 7.805 | AS15: 6.789 | AT15: 4.106 | AU15: 89.19 | AV15: 131.87 | AW15: 394.07 | AX15: 917.73 | AY15: 1965.09
C16: Volume Country | D16: JGN | AL16: 27.62 | AM16: 12.4 | AN16: 0.449 | AO16: 21.022 | AP16: 8.026 | AQ16: 7.704 | AR16: 7.528 | AS16: 6.513 | AT16: 3.885 | AU16: 89.19 | AV16: 131.87 | AW16: 394.07 | AX16: 917.73 | AY16: 1965.09
C18: Demand Capacity
C19: DC1 | D19: JGN | F19: 249.342 | G19: 130.976 | H19: 99.956 | I19: 88.16 | J19: 84.876 | AB19: 4868 | AC19: 6571 | AD19: 12773 | AE19: 17253 | AF19: 22717 | AG19: 9736 | AH19: 13142 | AI19: 25546 | AJ19: 34506 | AK19: 45434 | AU19: 89.19 | AV19: 131.87 | AW19: 394.07 | AX19: 917.73 | AY19: 1965.09
C20: DC2 | D20: JGN | F20: 276.986 | G20: 144.38 | H20: 108.892 | I20: 92.294 | J20: 20.104 | AB20: 4868 | AC20: 6571 | AD20: 12773 | AE20: 17253 | AF20: 22717 | AG20: 9736 | AH20: 13142 | AI20: 25546 | AJ20: 34506 | AK20: 45434 | AU20: 89.19 | AV20: 131.87 | AW20: 394.07 | AX20: 917.73 | AY20: 1965.09
C21: DC3 | D21: JGN | F21: 375.112 | G21: 195.782 | H21: 142.002 | I21: 118.978 | J21: 104.126 | AB21: 4868 | AC21: 6571 | AD21: 12773 | AE21: 17253 | AF21: 22717 | AG21: 9736 | AH21: 13142 | AI21: 25546 | AJ21: 34506 | AK21: 45434 | AU21: 89.19 | AV21: 131.87 | AW21: 394.07 | AX21: 917.73 | AY21: 1965.09
C22: DC4 | D22: JGN | F22: 618.916 | G22: 310.116 | H22: 219.378 | I22: 175.16 | J22: 159.178 | AB22: 4868 | AC22: 6571 | AD22: 12773 | AE22: 17253 | AF22: 22717 | AG22: 9736 | AH22: 13142 | AI22: 25546 | AJ22: 34506 | AK22: 45434 | AU22: 89.19 | AV22: 131.87 | AW22: 394.07 | AX22: 917.73 | AY22: 1965.09
C23: DC5 | D23: JGN | F23: 3142.618 | G23: 1897.45 | H23: 1279.792 | I23: 972.312 | J23: 670.372 | AB23: 4868 | AC23: 6571 | AD23: 12773 | AE23: 17253 | AF23: 22717 | AG23: 9736 | AH23: 13142 | AI23: 25546 | AJ23: 34506 | AK23: 45434 | AU23: 89.19 | AV23: 131.87 | AW23: 394.07 | AX23: 917.73 | AY23: 1965.09
C24: DC6 | D24: JGN | F24: 126.31 | G24: 71.346 | H24: 61.406 | I24: 59.628 | J24: 59.32 | AB24: 4868 | AC24: 6571 | AD24: 12773 | AE24: 17253 | AF24: 22717 | AG24: 9736 | AH24: 13142 | AI24: 25546 | AJ24: 34506 | AK24: 45434 | AU24: 89.19 | AV24: 131.87 | AW24: 394.07 | AX24: 917.73 | AY24: 1965.09
C25: DC7 | D25: JGN | F25: 414.374 | G25: 210.972 | H25: 153.288 | I25: 129.982 | J25: 110.986 | AB25: 4868 | AC25: 6571 | AD25: 12773 | AE25: 17253 | AF25: 22717 | AG25: 9736 | AH25: 13142 | AI25: 25546 | AJ25: 34506 | AK25: 45434 | AU25: 89.19 | AV25: 131.87 | AW25: 394.07 | AX25: 917.73 | AY25: 1965.09
C26: DC8 | D26: JGN | F26: 810.342 | G26: 435.136 | H26: 303.044 | I26: 238.174 | J26: 183.494 | AB26: 4868 | AC26: 6571 | AD26: 12773 | AE26: 17253 | AF26: 22717 | AG26: 9736 | AH26: 13142 | AI26: 25546 | AJ26: 34506 | AK26: 45434 | AU26: 89.19 | AV26: 131.87 | AW26: 394.07 | AX26: 917.73 | AY26: 1965.09
C27: DC9 | D27: JGN | F27: 55.088 | G27: 44.93 | H27: 44.782 | I27: 46.05 | J27: 52.87 | AB27: 4868 | AC27: 6571 | AD27: 12773 | AE27: 17253 | AF27: 22717 | AG27: 9736 | AH27: 13142 | AI27: 25546 | AJ27: 34506 | AK27: 45434 | AU27: 89.19 | AV27: 131.87 | AW27: 394.07 | AX27: 917.73 | AY27: 1965.09
C28: DC10 | D28: JGN | F28: 197.098 | G28: 105.654 | H28: 83.074 | I28: 72.932 | J28: 79.214 | AB28: 4868 | AC28: 6571 | AD28: 12773 | AE28: 17253 | AF28: 22717 | AG28: 9736 | AH28: 13142 | AI28: 25546 | AJ28: 34506 | AK28: 45434 | AU28: 89.19 | AV28: 131.87 | AW28: 394.07 | AX28: 917.73 | AY28: 1965.09
C29: DC11 | D29: JGN | F29: 2474.266 | G29: 1496.434 | H29: 1012.45 | I29: 771.802 | J29: 536.702 | AB29: 4868 | AC29: 6571 | AD29: 12773 | AE29: 17253 | AF29: 22717 | AG29: 9736 | AH29: 13142 | AI29: 25546 | AJ29: 34506 | AK29: 45434 | AU29: 89.19 | AV29: 131.87 | AW29: 394.07 | AX29: 917.73 | AY29: 1965.09
C30: DC country | D30: JGN | K30: 53.637 | L30: 26 | M30: 17.333 | N30: 13.788 | O30: 10.168 | P30: 19.036 | Q30: 9.226 | R30: 6.152 | S30: 4.892 | T30: 3.607 | AB30: 4868 | AC30: 6571 | AD30: 12773 | AE30: 17253 | AF30: 22717 | AG30: 9736 | AH30: 13142 | AI30: 25546 | AJ30: 34506 | AK30: 45434 | AU30: 89.19 | AV30: 131.87 | AW30: 394.07 | AX30: 917.73 | AY30: 1965.09
C32: Demand Throughput
C33: DT | D33: JGN | U33: 4.63 | V33: 3.74 | W33: 3.33 | AB33: 4868 | AC33: 6571 | AD33: 12773 | AE33: 17253 | AF33: 22717 | AG33: 9736 | AH33: 13142 | AI33: 25546 | AJ33: 34506 | AK33: 45434 | AU33: 89.19 | AV33: 131.87 | AW33: 394.07 | AX33: 917.73 | AY33: 1965.09
C34: DMT1 | D34: JGN | X34: 212474.3 | Y34: 0 | Z34: 0.214 | AA34: 0.194 | AB34: 4868 | AC34: 6571 | AD34: 12773 | AE34: 17253 | AF34: 22717 | AG34: 9736 | AH34: 13142 | AI34: 25546 | AJ34: 34506 | AK34: 45434 | AU34: 89.19 | AV34: 131.87 | AW34: 394.07 | AX34: 917.73 | AY34: 1965.09
C35: DMT2 | D35: JGN | X35: 242884.4 | Y35: 0 | Z35: 0.214 | AA35: 0.196 | AB35: 4868 | AC35: 6571 | AD35: 12773 | AE35: 17253 | AF35: 22717 | AG35: 9736 | AH35: 13142 | AI35: 25546 | AJ35: 34506 | AK35: 45434 | AU35: 89.19 | AV35: 131.87 | AW35: 394.07 | AX35: 917.73 | AY35: 1965.09
C36: DMT3 | D36: JGN | X36: 285981.26 | Y36: 0 | Z36: 0.364 | AA36: 0.302 | AB36: 4868 | AC36: 6571 | AD36: 12773 | AE36: 17253 | AF36: 22717 | AG36: 9736 | AH36: 13142 | AI36: 25546 | AJ36: 34506 | AK36: 45434 | AU36: 89.19 | AV36: 131.87 | AW36: 394.07 | AX36: 917.73 | AY36: 1965.09
C37: DMT4 | D37: JGN | X37: 521616.48 | Y37: 0 | Z37: 0.784 | AA37: 0.732 | AB37: 4868 | AC37: 6571 | AD37: 12773 | AE37: 17253 | AF37: 22717 | AG37: 9736 | AH37: 13142 | AI37: 25546 | AJ37: 34506 | AK37: 45434 | AU37: 89.19 | AV37: 131.87 | AW37: 394.07 | AX37: 917.73 | AY37: 1965.09
C38: DMT5 | D38: JGN | X38: 978030.82 | Y38: 0 | Z38: 0.962 | AA38: 1.044 | AB38: 4868 | AC38: 6571 | AD38: 12773 | AE38: 17253 | AF38: 22717 | AG38: 9736 | AH38: 13142 | AI38: 25546 | AJ38: 34506 | AK38: 45434 | AU38: 89.19 | AV38: 131.87 | AW38: 394.07 | AX38: 917.73 | AY38: 1965.09
C40: Demand Capacity - First Response
C41: DC1FR | D41: JGN | F41: 124.671 | G41: 65.488 | H41: 49.978 | I41: 44.08 | J41: 42.438 | AB41: 4868 | AC41: 6571 | AD41: 12773 | AE41: 17253 | AF41: 22717 | AG41: 9736 | AH41: 13142 | AI41: 25546 | AJ41: 34506 | AK41: 45434 | AU41: 89.19 | AV41: 131.87 | AW41: 394.07 | AX41: 917.73 | AY41: 1965.09
C42: DC2FR | D42: JGN | F42: 138.493 | G42: 72.19 | H42: 54.446 | I42: 46.147 | J42: 10.052 | AB42: 4868 | AC42: 6571 | AD42: 12773 | AE42: 17253 | AF42: 22717 | AG42: 9736 | AH42: 13142 | AI42: 25546 | AJ42: 34506 | AK42: 45434 | AU42: 89.19 | AV42: 131.87 | AW42: 394.07 | AX42: 917.73 | AY42: 1965.09
C43: DC3FR | D43: JGN | F43: 187.556 | G43: 97.891 | H43: 71.001 | I43: 59.489 | J43: 52.063 | AB43: 4868 | AC43: 6571 | AD43: 12773 | AE43: 17253 | AF43: 22717 | AG43: 9736 | AH43: 13142 | AI43: 25546 | AJ43: 34506 | AK43: 45434 | AU43: 89.19 | AV43: 131.87 | AW43: 394.07 | AX43: 917.73 | AY43: 1965.09
C44: DC4FR | D44: JGN | F44: 309.458 | G44: 155.058 | H44: 109.689 | I44: 87.58 | J44: 79.589 | AB44: 4868 | AC44: 6571 | AD44: 12773 | AE44: 17253 | AF44: 22717 | AG44: 9736 | AH44: 13142 | AI44: 25546 | AJ44: 34506 | AK44: 45434 | AU44: 89.19 | AV44: 131.87 | AW44: 394.07 | AX44: 917.73 | AY44: 1965.09
C45: DC5FR | D45: JGN | F45: 1571.309 | G45: 948.725 | H45: 639.896 | I45: 486.156 | J45: 335.186 | AB45: 4868 | AC45: 6571 | AD45: 12773 | AE45: 17253 | AF45: 22717 | AG45: 9736 | AH45: 13142 | AI45: 25546 | AJ45: 34506 | AK45: 45434 | AU45: 89.19 | AV45: 131.87 | AW45: 394.07 | AX45: 917.73 | AY45: 1965.09
C46: DC6FR | D46: JGN | F46: 63.155 | G46: 35.673 | H46: 30.703 | I46: 29.814 | J46: 29.66 | AB46: 4868 | AC46: 6571 | AD46: 12773 | AE46: 17253 | AF46: 22717 | AG46: 9736 | AH46: 13142 | AI46: 25546 | AJ46: 34506 | AK46: 45434 | AU46: 89.19 | AV46: 131.87 | AW46: 394.07 | AX46: 917.73 | AY46: 1965.09
C47: DC7FR | D47: JGN | F47: 207.187 | G47: 105.486 | H47: 76.644 | I47: 64.991 | J47: 55.493 | AB47: 4868 | AC47: 6571 | AD47: 12773 | AE47: 17253 | AF47: 22717 | AG47: 9736 | AH47: 13142 | AI47: 25546 | AJ47: 34506 | AK47: 45434 | AU47: 89.19 | AV47: 131.87 | AW47: 394.07 | AX47: 917.73 | AY47: 1965.09
C48: DC8FR | D48: JGN | F48: 405.171 | G48: 217.568 | H48: 151.522 | I48: 119.087 | J48: 91.747 | AB48: 4868 | AC48: 6571 | AD48: 12773 | AE48: 17253 | AF48: 22717 | AG48: 9736 | AH48: 13142 | AI48: 25546 | AJ48: 34506 | AK48: 45434 | AU48: 89.19 | AV48: 131.87 | AW48: 394.07 | AX48: 917.73 | AY48: 1965.09
C49: DC9FR | D49: JGN | F49: 27.544 | G49: 22.465 | H49: 22.391 | I49: 23.025 | J49: 26.435 | AB49: 4868 | AC49: 6571 | AD49: 12773 | AE49: 17253 | AF49: 22717 | AG49: 9736 | AH49: 13142 | AI49: 25546 | AJ49: 34506 | AK49: 45434 | AU49: 89.19 | AV49: 131.87 | AW49: 394.07 | AX49: 917.73 | AY49: 1965.09
C50: DC10FR | D50: JGN | F50: 98.549 | G50: 52.827 | H50: 41.537 | I50: 36.466 | J50: 39.607 | AB50: 4868 | AC50: 6571 | AD50: 12773 | AE50: 17253 | AF50: 22717 | AG50: 9736 | AH50: 13142 | AI50: 25546 | AJ50: 34506 | AK50: 45434 | AU50: 89.19 | AV50: 131.87 | AW50: 394.07 | AX50: 917.73 | AY50: 1965.09
C51: DC11FR | D51: JGN | F51: 1237.133 | G51: 748.217 | H51: 506.225 | I51: 385.901 | J51: 268.351 | AB51: 4868 | AC51: 6571 | AD51: 12773 | AE51: 17253 | AF51: 22717 | AG51: 9736 | AH51: 13142 | AI51: 25546 | AJ51: 34506 | AK51: 45434 | AU51: 89.19 | AV51: 131.87 | AW51: 394.07 | AX51: 917.73 | AY51: 1965.09
C53: Demand Throughput - First Response
C54: DMT1FR | D54: JGN | X54: 106237.15 | Y54: 0 | Z54: 0.107 | AA54: 0.097 | AB54: 4868 | AC54: 6571 | AD54: 12773 | AE54: 17253 | AF54: 22717 | AG54: 9736 | AH54: 13142 | AI54: 25546 | AJ54: 34506 | AK54: 45434 | AU54: 89.19 | AV54: 131.87 | AW54: 394.07 | AX54: 917.73 | AY54: 1965.09
C55: DMT2FR | D55: JGN | X55: 121442.2 | Y55: 0 | Z55: 0.107 | AA55: 0.098 | AB55: 4868 | AC55: 6571 | AD55: 12773 | AE55: 17253 | AF55: 22717 | AG55: 9736 | AH55: 13142 | AI55: 25546 | AJ55: 34506 | AK55: 45434 | AU55: 89.19 | AV55: 131.87 | AW55: 394.07 | AX55: 917.73 | AY55: 1965.09
C56: DMT3FR | D56: JGN | X56: 142990.63 | Y56: 0 | Z56: 0.182 | AA56: 0.151 | AB56: 4868 | AC56: 6571 | AD56: 12773 | AE56: 17253 | AF56: 22717 | AG56: 9736 | AH56: 13142 | AI56: 25546 | AJ56: 34506 | AK56: 45434 | AU56: 89.19 | AV56: 131.87 | AW56: 394.07 | AX56: 917.73 | AY56: 1965.09
C57: DMT4FR | D57: JGN | X57: 260808.24 | Y57: 0 | Z57: 0.392 | AA57: 0.366 | AB57: 4868 | AC57: 6571 | AD57: 12773 | AE57: 17253 | AF57: 22717 | AG57: 9736 | AH57: 13142 | AI57: 25546 | AJ57: 34506 | AK57: 45434 | AU57: 89.19 | AV57: 131.87 | AW57: 394.07 | AX57: 917.73 | AY57: 1965.09
C58: DMT5FR | D58: JGN | X58: 489015.41 | Y58: 0 | Z58: 0.481 | AA58: 0.522 | AB58: 4868 | AC58: 6571 | AD58: 12773 | AE58: 17253 | AF58: 22717 | AG58: 9736 | AH58: 13142 | AI58: 25546 | AJ58: 34506 | AK58: 45434 | AU58: 89.19 | AV58: 131.87 | AW58: 394.07 | AX58: 917.73 | AY58: 1965.09
B62: Input | Meter data service
C64: (a) Meter Reading Charges
D66: Meter Reading Cycle | E66: Period ending 30 June 2014 | F66: Period ending 30 June 2015
C67: All Volume Tariff Classes | D67: Quarterly | E67: 4.469 | F67: 4.505
D68: Monthly | E68: 47.242 | F68: 47.623
C69: All Demand Tariff Classes | D69: Daily Meter Reading | E69: 829 | F69: 837
C71: (b) Provision of On Site Data and Communications Equipment Charge
D73: Period ending 30 June 2014 | E73: Period ending 30 June 2015
C74: All Demand Tariff Classes | D74: 1548 | E74: 1560
C76: (c) Ancillary Reference Service: fees fro Meter Data Service
D78: Period ending 30 June 2014 | E78: Period ending 30 June 2015
C79: Special Meter Read | D79: 38.62 | E79: 38.93
B81: End

Sheet Input|2014-2015 tariffs
A1: =Index!$C$1 -> JGN Reference tariffs and customer outcomes
A2: =Index!$C$22 -> Input|2014-15 tariffs
A5: Copyright Jemena Limited. All rights reserved. Jemena is not liable for any loss caused by reliance on this document.
A7: Haulague and Reference Tariffs
A9: Tariff Type | D9: Demand Capacity | J9: Demand Capacity Distance | P9: Pressure Reduction | V9: Demand Throughput - DT | Y9: Demand Throughput - DMT | AC9: Metering - Single Meter | AH9: Metering Double Meter | AM9: Volume Residential Distributed Generated Technology - VRT | AS9: VRT Metering - Single Meter | AX9: VRT Metering Double Meter | BC9: Volume Boundary Meter - VB | BH9: Volume Individual Meter- VI | BO9: Ancillary Charges
A10: Tariff Block | D10: Block 1 | E10: Block 2 | F10: Block 3 | G10: Block 4 | H10: Block 5 | I10: Block 6 | J10: Block 1 | K10: Block 2 | L10: Block 3 | M10: Block 4 | N10: Block 5 | O10: Block 6 | P10: Block 1 | Q10: Block 2 | R10: Block 3 | S10: Block 4 | T10: Block 5 | U10: Block 6 | V10: Block 1 | W10: Block 2 | X10: Block 3 | Y10: Fixed | Z10: Block 1 | AA10: Block 2 | AB10: Block 3 | AC10: MHQ < 10 GJ/hr | AD10: 10 to < 50 GJ/hr | AE10: 50 to < 100 GJ/hr | AF10: 100 to < 1000 GJ/hr | AG10: 1000GJ/hr and greater | AH10: MHQ < 10 GJ/hr | AI10: 10 to < 50 GJ/hr | AJ10: 50 to < 100 GJ/hr | AK10: 100 to < 1000 GJ/hr | AL10: 1000GJ/hr and greater | AM10: Block 1 | AN10: Block 2 | AO10: Block 3 | AP10: Block 4 | AQ10: Block 5 | AR10: Block 6 | AS10: MHQ < 10 GJ/hr | AT10: 10 to < 50 GJ/hr | AU10: 50 to < 100 GJ/hr | AV10: 100 to < 1000 GJ/hr | AW10: 1000GJ/hr and greater | AX10: MHQ < 10 GJ/hr | AY10: 10 to < 50 GJ/hr | AZ10: 50 to < 100 GJ/hr | BA10: 100 to < 1000 GJ/hr | BB10: 1000GJ/hr and greater | BC10: Fixed charge | BD10: Band 1 | BE10: Band 2 | BF10: Band 3 | BG10: Band 4 | BH10: Fixed charge | BI10: Band 1 | BJ10: Band 2 | BK10: Band 3 | BL10: Band 4 | BM10: Band 5 | BN10: Band 6 | BO10: Requests For Service | BP10: Disconnections Small Meters | BQ10: Temporary Disconnections Large Meters | BR10: Decommission small meter | BS10: Decommission large meter | BT10: Special Meter Reads
A11: Unit | D11: $/GJ of CD pa | E11: $/GJ of CD pa | F11: $/GJ of CD pa | G11: $/GJ of CD pa | H11: $/GJ of CD pa | I11: $/GJ of CD pa | J11: $/GJ of CD x dist | K11: $/GJ of CD x dist | L11: $/GJ of CD x dist | M11: $/GJ of CD x dist | N11: $/GJ of CD x dist | O11: $/GJ of CD x dist | P11: $/GJ of CD pa | Q11: $/GJ of CD pa | R11: $/GJ of CD pa | S11: $/GJ of CD pa | T11: $/GJ of CD pa | U11: $/GJ of CD pa | V11: $/GJ | W11: $/GJ | X11: $/GJ | Y11: $/Year | Z11: $/GJ | AA11: $/GJ | AB11: $/GJ | AC11: $/Year | AD11: $/Year | AE11: $/Year | AF11: $/Year | AG11: $/Year | AH11: $/Year | AI11: $/Year | AJ11: $/Year | AK11: $/Year | AL11: $/Year | AM11: $/GJ of CD pa | AN11: $/GJ of CD pa | AO11: $/GJ of CD pa | AP11: $/GJ of CD pa | AQ11: $/GJ of CD pa | AR11: $/GJ of CD pa | AS11: $/Year | AT11: $/Year | AU11: $/Year | AV11: $/Year | AW11: $/Year | AX11: $/Year | AY11: $/Year | AZ11: $/Year | BA11: $/Year | BB11: $/Year | BC11: $/Year | BD11: $/GJ | BE11: $/GJ | BF11: $/GJ | BG11: $/GJ | BH11: $/Year | BI11: $/GJ | BJ11: $/GJ | BK11: $/GJ | BL11: $/GJ | BM11: $/GJ | BN11: $/GJ | BO11: $/Hr | BP11: $/Disconnection/Meter set | BQ11: $/Disconnection/Meter set | BR11: $/Decommission/Meter | BS11: $/Decommission/Meter | BT11: $/Meter read
A13: Volume Individual Meter
A14: VI Coastal | B14: JGN | BH14: 49.499 | BI14: 24.031 | BJ14: 24.031 | BK14: 9.31 | BL14: 8.849 | BM14: 7.893062519 | BN14: 4.25968219 | BO14: 99 | BP14: 146.86 | BQ14: 146.86 | BR14: 1022.08 | BS14: 2188 | BT14: 40
A15: VI Country | B15: JGN | BH15: 49.499 | BI15: 23.573 | BJ15: 23.573 | BK15: 9 | BL15: 8.54 | BM15: 7.573690047 | BN15: 4.033632843 | BO15: 99 | BP15: 146.86 | BQ15: 146.86 | BR15: 1022.08 | BS15: 2188 | BT15: 40
A17: Volume Boundary Meter
A18: VB Coastal | B18: JGN | BO18: 99 | BP18: 146.86 | BQ18: 146.86 | BR18: 1022.08 | BS18: 2188 | BT18: 40
A19: VB Country | B19: JGN | BO19: 99 | BP19: 146.86 | BQ19: 146.86 | BR19: 1022.08 | BS19: 2188 | BT19: 40
A21: Volume Residential Distributed Generated Technology
A22: VRT3 | B22: JGN | BO22: 99 | BP22: 146.86 | BQ22: 146.86 | BR22: 1022.08 | BS22: 2188 | BT22: 40
A23: VRT4 | B23: JGN | BO23: 99 | BP23: 146.86 | BQ23: 146.86 | BR23: 1022.08 | BS23: 2188 | BT23: 40
A24: VRT6 | B24: JGN | BO24: 99 | BP24: 146.86 | BQ24: 146.86 | BR24: 1022.08 | BS24: 2188 | BT24: 40
A25: VRT10 | B25: JGN | BO25: 99 | BP25: 146.86 | BQ25: 146.86 | BR25: 1022.08 | BS25: 2188 | BT25: 40
A27: End

Sheet Input|2015-16 tariffs
A1: =Index!$C$1 -> JGN Reference tariffs and customer outcomes
A2: =Index!$C$23 -> Input|2015-16 tariffs
A5: Copyright Jemena Limited. All rights reserved. Jemena is not liable for any loss caused by reliance on this document.
A7: Haulague and Reference Tariffs
A9: Tariff Type | D9: Demand Capacity | J9: Demand Capacity Distance | P9: Pressure Reduction | V9: Demand Throughput - DT | Y9: Demand Throughput - DMT | AC9: Metering - Single Meter | AH9: Metering Double Meter | AM9: Volume Residential Distributed Generated Technology - VRT | AS9: VRT Metering - Single Meter | AX9: VRT Metering Double Meter | BC9: Volume Boundary Meter - VB | BH9: Volume Individual Meter- VI | BO9: Ancillary Charges
A10: Tariff Block | D10: Block 1 | E10: Block 2 | F10: Block 3 | G10: Block 4 | H10: Block 5 | I10: Block 6 | J10: Block 1 | K10: Block 2 | L10: Block 3 | M10: Block 4 | N10: Block 5 | O10: Block 6 | P10: Block 1 | Q10: Block 2 | R10: Block 3 | S10: Block 4 | T10: Block 5 | U10: Block 6 | V10: Block 1 | W10: Block 2 | X10: Block 3 | Y10: Fixed | Z10: Block 1 | AA10: Block 2 | AB10: Block 3 | AC10: MHQ < 10 GJ/hr | AD10: 10 to < 50 GJ/hr | AE10: 50 to < 100 GJ/hr | AF10: 100 to < 1000 GJ/hr | AG10: 1000GJ/hr and greater | AH10: MHQ < 10 GJ/hr | AI10: 10 to < 50 GJ/hr | AJ10: 50 to < 100 GJ/hr | AK10: 100 to < 1000 GJ/hr | AL10: 1000GJ/hr and greater | AM10: Block 1 | AN10: Block 2 | AO10: Block 3 | AP10: Block 4 | AQ10: Block 5 | AR10: Block 6 | AS10: MHQ < 10 GJ/hr | AT10: 10 to < 50 GJ/hr | AU10: 50 to < 100 GJ/hr | AV10: 100 to < 1000 GJ/hr | AW10: 1000GJ/hr and greater | AX10: MHQ < 10 GJ/hr | AY10: 10 to < 50 GJ/hr | AZ10: 50 to < 100 GJ/hr | BA10: 100 to < 1000 GJ/hr | BB10: 1000GJ/hr and greater | BC10: Fixed charge | BD10: Block 1 | BE10: Block 2 | BF10: Block 3 | BG10: Block 4 | BH10: Fixed charge | BI10: Block 1 | BJ10: Block 2 | BK10: Block 3 | BL10: Block 4 | BM10: Block 5 | BN10: Block 6 | BO10: Requests For Service | BP10: Disconnections Small Meters | BQ10: Temporary Disconnections Large Meters | BR10: Decommission small meter | BS10: Decommission large meter | BT10: Special Meter Reads
A11: Unit | D11: $/GJ of CD pa | E11: $/GJ of CD pa | F11: $/GJ of CD pa | G11: $/GJ of CD pa | H11: $/GJ of CD pa | I11: $/GJ of CD pa | J11: $/GJ of CD x dist | K11: $/GJ of CD x dist | L11: $/GJ of CD x dist | M11: $/GJ of CD x dist | N11: $/GJ of CD x dist | O11: $/GJ of CD x dist | P11: $/GJ of CD pa | Q11: $/GJ of CD pa | R11: $/GJ of CD pa | S11: $/GJ of CD pa | T11: $/GJ of CD pa | U11: $/GJ of CD pa | V11: $/GJ | W11: $/GJ | X11: $/GJ | Y11: $/Year | Z11: $/GJ | AA11: $/GJ | AB11: $/GJ | AC11: $/Year | AD11: $/Year | AE11: $/Year | AF11: $/Year | AG11: $/Year | AH11: $/Year | AI11: $/Year | AJ11: $/Year | AK11: $/Year | AL11: $/Year | AM11: $/GJ of CD pa | AN11: $/GJ of CD pa | AO11: $/GJ of CD pa | AP11: $/GJ of CD pa | AQ11: $/GJ of CD pa | AR11: $/GJ of CD pa | AS11: $/Year | AT11: $/Year | AU11: $/Year | AV11: $/Year | AW11: $/Year | AX11: $/Year | AY11: $/Year | AZ11: $/Year | BA11: $/Year | BB11: $/Year | BC11: $/Year | BD11: $/GJ | BE11: $/GJ | BF11: $/GJ | BG11: $/GJ | BH11: $/Year | BI11: $/GJ | BJ11: $/GJ | BK11: $/GJ | BL11: $/GJ | BM11: $/GJ | BN11: $/GJ | BO11: $/Hr | BP11: $/Disconnection/Meter set | BQ11: $/Disconnection/Meter set | BR11: $/Decommission/Meter | BS11: $/Decommission/Meter | BT11: $/Meter read
A13: Volume Individual Meter
A14: VI Coastal | B14: JGN | BH14: 51.67611176 | BI14: 24.58751426 | BJ14: 21.15050758 | BK14: 9.58 | BL14: 9.569 | BM14: 8.493062519 | BN14: 4.991134972 | BO14: 100 | BP14: 150 | BQ14: 150 | BR14: 1050 | BS14: 2188 | BT14: 14.8
A15: VI Country | B15: JGN | BH15: 51.67611176 | BI15: 24.09751426 | BJ15: 20.66050758 | BK15: 9.27 | BL15: 9.26 | BM15: 8.173690047 | BN15: 4.761134972 | BO15: 100 | BP15: 150 | BQ15: 150 | BR15: 1050 | BS15: 2188 | BT15: 14.8
A17: Volume Boundary Meter
A18: VB Coastal | B18: JGN | BC18: 1550.283353 | BD18: 22.12876284 | BE18: 19.03545682 | BF18: 8.622 | BG18: 8.6121 | BO18: 100 | BP18: 150 | BQ18: 150 | BR18: 1050 | BS18: 2188 | BT18: 14.8
A19: VB Country | B19: JGN | BC19: 1550.283353 | BD19: 21.68776284 | BE19: 18.59445682 | BF19: 8.343 | BG19: 8.334 | BO19: 100 | BP19: 150 | BQ19: 150 | BR19: 1050 | BS19: 2188 | BT19: 14.8
A21: Volume Residential Distributed Generated Technology
A22: VRT3 | B22: JGN | AM22: 450.5556 | AN22: 428.02782 | AO22: 256.2357252 | AP22: 185.8508568 | AQ22: 156.4944327 | AR22: 115.0023 | AS22: 8288.7 | AT22: 10283.7 | AU22: 17548.65 | AV22: 22796.55 | AW22: 29198.4 | AX22: 13991.25 | AY22: 17981.25 | AZ22: 32511.15 | BA22: 43006.95 | BB22: 55810.65 | BO22: 100 | BP22: 150 | BQ22: 150 | BR22: 1050 | BS22: 2188 | BT22: 14.8
A23: VRT4 | B23: JGN | AM23: 743.3954 | AN23: 706.22563 | AO23: 405.8764062 | AP23: 287.1181085 | AQ23: 238.4180611 | AR23: 174.1278 | AS23: 8288.7 | AT23: 10283.7 | AU23: 17548.65 | AV23: 22796.55 | AW23: 29198.4 | AX23: 13991.25 | AY23: 17981.25 | AZ23: 32511.15 | BA23: 43006.95 | BB23: 55810.65 | BO23: 100 | BP23: 150 | BQ23: 150 | BR23: 1050 | BS23: 2188 | BT23: 14.8
A24: VRT6 | B24: JGN | AM24: 155.0142 | AN24: 147.26349 | AO24: 93.37616123 | AP24: 80.36631383 | AQ24: 80.34018439 | AR24: 64.3293 | AS24: 8288.7 | AT24: 10283.7 | AU24: 17548.65 | AV24: 22796.55 | AW24: 29198.4 | AX24: 13991.25 | AY24: 17981.25 | AZ24: 32511.15 | BA24: 43006.95 | BB24: 55810.65 | BO24: 100 | BP24: 150 | BQ24: 150 | BR24: 1050 | BS24: 2188 | BT24: 14.8
A25: VRT10 | B25: JGN | AM25: 241.8856 | AN25: 229.79132 | AO25: 138.2796012 | AP25: 108.7245934 | AQ25: 95.45083864 | AR25: 85.8207 | AS25: 8288.7 | AT25: 10283.7 | AU25: 17548.65 | AV25: 22796.55 | AW25: 29198.4 | AX25: 13991.25 | AY25: 17981.25 | AZ25: 32511.15 | BA25: 43006.95 | BB25: 55810.65 | BO25: 100 | BP25: 150 | BQ25: 150 | BR25: 1050 | BS25: 2188 | BT25: 14.8
A27: End

Sheet Input|2016-17 tariffs
A1: =Index!$C$1 -> JGN Reference tariffs and customer outcomes
A2: =Index!$C$24 -> Input|2016-17 tariffs
A5: Copyright Jemena Limited. All rights reserved. Jemena is not liable for any loss caused by reliance on this document.
A7: Haulague and Reference Tariffs
A9: Tariff Type | D9: Demand Capacity | J9: Demand Capacity Distance | P9: Pressure Reduction | V9: Demand Throughput - DT | Y9: Demand Throughput - DMT | AC9: Metering - Single Meter | AH9: Metering Double Meter | AM9: Volume Residential Distributed Generated Technology - VRT | AS9: VRT Metering - Single Meter | AX9: VRT Metering Double Meter | BC9: Volume Boundary Meter - VB | BH9: Volume Individual Meter- VI | BO9: Ancillary Charges
A10: Tariff Block | D10: Block 1 | E10: Block 2 | F10: Block 3 | G10: Block 4 | H10: Block 5 | I10: Block 6 | J10: Block 1 | K10: Block 2 | L10: Block 3 | M10: Block 4 | N10: Block 5 | O10: Block 6 | P10: Block 1 | Q10: Block 2 | R10: Block 3 | S10: Block 4 | T10: Block 5 | U10: Block 6 | V10: Block 1 | W10: Block 2 | X10: Block 3 | Y10: Fixed | Z10: Block 1 | AA10: Block 2 | AB10: Block 3 | AC10: MHQ < 10 GJ/hr | AD10: 10 to < 50 GJ/hr | AE10: 50 to < 100 GJ/hr | AF10: 100 to < 1000 GJ/hr | AG10: 1000GJ/hr and greater | AH10: MHQ < 10 GJ/hr | AI10: 10 to < 50 GJ/hr | AJ10: 50 to < 100 GJ/hr | AK10: 100 to < 1000 GJ/hr | AL10: 1000GJ/hr and greater | AM10: Block 1 | AN10: Block 2 | AO10: Block 3 | AP10: Block 4 | AQ10: Block 5 | AR10: Block 6 | AS10: MHQ < 10 GJ/hr | AT10: 10 to < 50 GJ/hr | AU10: 50 to < 100 GJ/hr | AV10: 100 to < 1000 GJ/hr | AW10: 1000GJ/hr and greater | AX10: MHQ < 10 GJ/hr | AY10: 10 to < 50 GJ/hr | AZ10: 50 to < 100 GJ/hr | BA10: 100 to < 1000 GJ/hr | BB10: 1000GJ/hr and greater | BC10: Fixed charge | BD10: Block 1 | BE10: Block 2 | BF10: Block 3 | BG10: Block 4 | BH10: Fixed charge | BI10: Block 1 | BJ10: Block 2 | BK10: Block 3 | BL10: Block 4 | BM10: Block 5 | BN10: Block 6 | BO10: Requests For Service | BP10: Disconnections Small Meters | BQ10: Temporary Disconnections Large Meters | BR10: Decommission small meter | BS10: Decommission large meter | BT10: Special Meter Reads
A11: Unit | D11: $/GJ of CD pa | E11: $/GJ of CD pa | F11: $/GJ of CD pa | G11: $/GJ of CD pa | H11: $/GJ of CD pa | I11: $/GJ of CD pa | J11: $/GJ of CD x dist | K11: $/GJ of CD x dist | L11: $/GJ of CD x dist | M11: $/GJ of CD x dist | N11: $/GJ of CD x dist | O11: $/GJ of CD x dist | P11: $/GJ of CD pa | Q11: $/GJ of CD pa | R11: $/GJ of CD pa | S11: $/GJ of CD pa | T11: $/GJ of CD pa | U11: $/GJ of CD pa | V11: $/GJ | W11: $/GJ | X11: $/GJ | Y11: $/Year | Z11: $/GJ | AA11: $/GJ | AB11: $/GJ | AC11: $/Year | AD11: $/Year | AE11: $/Year | AF11: $/Year | AG11: $/Year | AH11: $/Year | AI11: $/Year | AJ11: $/Year | AK11: $/Year | AL11: $/Year | AM11: $/GJ of CD pa | AN11: $/GJ of CD pa | AO11: $/GJ of CD pa | AP11: $/GJ of CD pa | AQ11: $/GJ of CD pa | AR11: $/GJ of CD pa | AS11: $/Year | AT11: $/Year | AU11: $/Year | AV11: $/Year | AW11: $/Year | AX11: $/Year | AY11: $/Year | AZ11: $/Year | BA11: $/Year | BB11: $/Year | BC11: $/Year | BD11: $/GJ | BE11: $/GJ | BF11: $/GJ | BG11: $/GJ | BH11: $/Year | BI11: $/GJ | BJ11: $/GJ | BK11: $/GJ | BL11: $/GJ | BM11: $/GJ | BN11: $/GJ | BO11: $/Hr | BP11: $/Disconnection/Meter set | BQ11: $/Disconnection/Meter set | BR11: $/Decommission/Meter | BS11: $/Decommission/Meter | BT11: $/Meter read
A13: Volume Individual Meter
A14: VI Coastal | B14: JGN | BH14: 51.56221276 | BI14: 24.53332108 | BJ14: 20.58310684 | BK14: 9.558884782 | BL14: 9.547909027 | BM14: 8.474343013 | BN14: 4.980134042 | BO14: 102.5459984 | BP14: 153.8189977 | BQ14: 153.8189977 | BR14: 1076.732984 | BS14: 2243.706446 | BT14: 15.17680777
A15: VI Country | B15: JGN | BH15: 51.56221276 | BI15: 24.04440108 | BJ15: 20.10625197 | BK15: 9.249568051 | BL15: 9.239590092 | BM15: 8.155674468 | BN15: 4.750640984 | BO15: 102.5459984 | BP15: 153.8189977 | BQ15: 153.8189977 | BR15: 1076.732984 | BS15: 2243.706446 | BT15: 15.17680777
A17: Volume Boundary Meter
A18: VB Coastal | B18: JGN | BC18: 1546.866383 | BD18: 22.07998897 | BE18: 18.52479615 | BF18: 8.602996304 | BG18: 8.593118124 | BO18: 102.5459984 | BP18: 153.8189977 | BQ18: 153.8189977 | BR18: 1076.732984 | BS18: 2243.706446 | BT18: 15.17680777
A19: VB Country | B19: JGN | BC19: 1546.866383 | BD19: 21.63996097 | BE19: 18.09562678 | BF19: 8.324611246 | BG19: 8.315631083 | BO19: 102.5459984 | BP19: 153.8189977 | BQ19: 153.8189977 | BR19: 1076.732984 | BS19: 2243.706446 | BT19: 15.17680777
A21: Volume Residential Distributed Generated Technology
A22: VRT3 | B22: JGN | AM22: 495.61116 | AN22: 441.8616844 | AO22: 264.517267 | AP22: 191.8575588 | AQ22: 161.5523347 | AR22: 120.752415 | AS22: 8703.135 | AT22: 10797.885 | AU22: 18426.0825 | AV22: 23936.3775 | AW22: 30658.32 | AX22: 14690.8125 | AY22: 18880.3125 | AZ22: 34136.7075 | BA22: 45157.2975 | BB22: 58601.1825 | BO22: 102.5459984 | BP22: 153.8189977 | BQ22: 153.8189977 | BR22: 1076.732984 | BS22: 2243.706446 | BT22: 15.17680777
A23: VRT4 | B23: JGN | AM23: 817.73494 | AN23: 729.050851 | AO23: 418.9943366 | AP23: 296.3977693 | AQ23: 246.1237358 | AR23: 182.83419 | AS23: 8703.135 | AT23: 10797.885 | AU23: 18426.0825 | AV23: 23936.3775 | AW23: 30658.32 | AX23: 14690.8125 | AY23: 18880.3125 | AZ23: 34136.7075 | BA23: 45157.2975 | BB23: 58601.1825 | BO23: 102.5459984 | BP23: 153.8189977 | BQ23: 153.8189977 | BR23: 1076.732984 | BS23: 2243.706446 | BT23: 15.17680777
A24: VRT6 | B24: JGN | AM24: 170.51562 | AN24: 152.0230478 | AO24: 96.39407991 | AP24: 82.96375408 | AQ24: 82.93678013 | AR24: 67.545765 | AS24: 8703.135 | AT24: 10797.885 | AU24: 18426.0825 | AV24: 23936.3775 | AW24: 30658.32 | AX24: 14690.8125 | AY24: 18880.3125 | AZ24: 34136.7075 | BA24: 45157.2975 | BB24: 58601.1825 | BO24: 102.5459984 | BP24: 153.8189977 | BQ24: 153.8189977 | BR24: 1076.732984 | BS24: 2243.706446 | BT24: 15.17680777
A25: VRT10 | B25: JGN | AM25: 266.07416 | AN25: 237.2181783 | AO25: 142.7487996 | AP25: 112.2385736 | AQ25: 98.53581092 | AR25: 90.111735 | AS25: 8703.135 | AT25: 10797.885 | AU25: 18426.0825 | AV25: 23936.3775 | AW25: 30658.32 | AX25: 14690.8125 | AY25: 18880.3125 | AZ25: 34136.7075 | BA25: 45157.2975 | BB25: 58601.1825 | BO25: 102.5459984 | BP25: 153.8189977 | BQ25: 153.8189977 | BR25: 1076.732984 | BS25: 2243.706446 | BT25: 15.17680777
A27: End

Sheet Input|2017-18 tariffs
A1: =Index!$C$1 -> JGN Reference tariffs and customer outcomes
A2: =Index!$C$25 -> Input|2017-18 tariffs
A5: Copyright Jemena Limited. All rights reserved. Jemena is not liable for any loss caused by reliance on this document.
A7: Haulague and Reference Tariffs
A9: Tariff Type | D9: Demand Capacity | J9: Demand Capacity Distance | P9: Pressure Reduction | V9: Demand Throughput - DT | Y9: Demand Throughput - DMT | AC9: Metering - Single Meter | AH9: Metering Double Meter | AM9: Volume Residential Distributed Generated Technology - VRT | AS9: VRT Metering - Single Meter | AX9: VRT Metering Double Meter | BC9: Volume Boundary Meter - VB | BH9: Volume Individual Meter- VI | BO9: Ancillary Charges
A10: Tariff Block | D10: Block 1 | E10: Block 2 | F10: Block 3 | G10: Block 4 | H10: Block 5 | I10: Block 6 | J10: Block 1 | K10: Block 2 | L10: Block 3 | M10: Block 4 | N10: Block 5 | O10: Block 6 | P10: Block 1 | Q10: Block 2 | R10: Block 3 | S10: Block 4 | T10: Block 5 | U10: Block 6 | V10: Block 1 | W10: Block 2 | X10: Block 3 | Y10: Fixed | Z10: Block 1 | AA10: Block 2 | AB10: Block 3 | AC10: MHQ < 10 GJ/hr | AD10: 10 to < 50 GJ/hr | AE10: 50 to < 100 GJ/hr | AF10: 100 to < 1000 GJ/hr | AG10: 1000GJ/hr and greater | AH10: MHQ < 10 GJ/hr | AI10: 10 to < 50 GJ/hr | AJ10: 50 to < 100 GJ/hr | AK10: 100 to < 1000 GJ/hr | AL10: 1000GJ/hr and greater | AM10: Block 1 | AN10: Block 2 | AO10: Block 3 | AP10: Block 4 | AQ10: Block 5 | AR10: Block 6 | AS10: MHQ < 10 GJ/hr | AT10: 10 to < 50 GJ/hr | AU10: 50 to < 100 GJ/hr | AV10: 100 to < 1000 GJ/hr | AW10: 1000GJ/hr and greater | AX10: MHQ < 10 GJ/hr | AY10: 10 to < 50 GJ/hr | AZ10: 50 to < 100 GJ/hr | BA10: 100 to < 1000 GJ/hr | BB10: 1000GJ/hr and greater | BC10: Fixed charge | BD10: Block 1 | BE10: Block 2 | BF10: Block 3 | BG10: Block 4 | BH10: Fixed charge | BI10: Block 1 | BJ10: Block 2 | BK10: Block 3 | BL10: Block 4 | BM10: Block 5 | BN10: Block 6 | BO10: Requests For Service | BP10: Disconnections Small Meters | BQ10: Temporary Disconnections Large Meters | BR10: Decommission small meter | BS10: Decommission large meter | BT10: Special Meter Reads
A11: Unit | D11: $/GJ of CD pa | E11: $/GJ of CD pa | F11: $/GJ of CD pa | G11: $/GJ of CD pa | H11: $/GJ of CD pa | I11: $/GJ of CD pa | J11: $/GJ of CD x dist | K11: $/GJ of CD x dist | L11: $/GJ of CD x dist | M11: $/GJ of CD x dist | N11: $/GJ of CD x dist | O11: $/GJ of CD x dist | P11: $/GJ of CD pa | Q11: $/GJ of CD pa | R11: $/GJ of CD pa | S11: $/GJ of CD pa | T11: $/GJ of CD pa | U11: $/GJ of CD pa | V11: $/GJ | W11: $/GJ | X11: $/GJ | Y11: $/Year | Z11: $/GJ | AA11: $/GJ | AB11: $/GJ | AC11: $/Year | AD11: $/Year | AE11: $/Year | AF11: $/Year | AG11: $/Year | AH11: $/Year | AI11: $/Year | AJ11: $/Year | AK11: $/Year | AL11: $/Year | AM11: $/GJ of CD pa | AN11: $/GJ of CD pa | AO11: $/GJ of CD pa | AP11: $/GJ of CD pa | AQ11: $/GJ of CD pa | AR11: $/GJ of CD pa | AS11: $/Year | AT11: $/Year | AU11: $/Year | AV11: $/Year | AW11: $/Year | AX11: $/Year | AY11: $/Year | AZ11: $/Year | BA11: $/Year | BB11: $/Year | BC11: $/Year | BD11: $/GJ | BE11: $/GJ | BF11: $/GJ | BG11: $/GJ | BH11: $/Year | BI11: $/GJ | BJ11: $/GJ | BK11: $/GJ | BL11: $/GJ | BM11: $/GJ | BN11: $/GJ | BO11: $/Hr | BP11: $/Disconnection/Meter set | BQ11: $/Disconnection/Meter set | BR11: $/Decommission/Meter | BS11: $/Decommission/Meter | BT11: $/Meter read
A13: Volume Individual Meter
A14: VI Coastal | B14: JGN | BH14: 51.44856481 | BI14: 24.47924734 | BJ14: 19.98033201 | BK14: 9.537816104 | BL14: 9.52686454 | BM14: 8.455664767 | BN14: 4.96915736 | BO14: 105.156818 | BP14: 157.7352269 | BQ14: 157.7352269 | BR14: 1104.146589 | BS14: 2300.831177 | BT14: 15.56320906
A15: VI Country | B15: JGN | BH15: 51.44856481 | BI15: 23.99140497 | BJ15: 19.51744181 | BK15: 9.229181136 | BL15: 9.219225169 | BM15: 8.137698597 | BN15: 4.740170126 | BO15: 105.156818 | BP15: 157.7352269 | BQ15: 157.7352269 | BR15: 1104.146589 | BS15: 2300.831177 | BT15: 15.56320906
A17: Volume Boundary Meter
A18: VB Coastal | B18: JGN | BC18: 1543.456944 | BD18: 22.0313226 | BE18: 17.98229881 | BF18: 8.584034493 | BG18: 8.574178086 | BO18: 105.156818 | BP18: 157.7352269 | BQ18: 157.7352269 | BR18: 1104.146589 | BS18: 2300.831177 | BT18: 15.56320906
A19: VB Country | B19: JGN | BC19: 1543.456944 | BD19: 21.59226447 | BE19: 17.56569763 | BF19: 8.306263022 | BG19: 8.297302652 | BO19: 105.156818 | BP19: 157.7352269 | BQ19: 157.7352269 | BR19: 1104.146589 | BS19: 2300.831177 | BT19: 15.56320906
A21: Volume Residential Distributed Generated Technology
A22: VRT3 | B22: JGN | AM22: 545.172276 | AN22: 455.0351088 | AO22: 272.4034412 | AP22: 197.5774959 | AQ22: 166.3687683 | AR22: 126.7900358 | AS22: 9138.29175 | AT22: 11337.77925 | AU22: 19347.38663 | AV22: 25133.19637 | AW22: 32191.236 | AX22: 15425.35313 | AY22: 19824.32812 | AZ22: 35843.54288 | BA22: 47415.16238 | BB22: 61531.24163 | BO22: 105.156818 | BP22: 157.7352269 | BQ22: 157.7352269 | BR22: 1104.146589 | BS22: 2300.831177 | BT22: 15.56320906
A23: VRT4 | B23: JGN | AM23: 899.508434 | AN23: 750.7863773 | AO23: 431.4860063 | AP23: 305.2344115 | AQ23: 253.4615352 | AR23: 191.9758995 | AS23: 9138.29175 | AT23: 11337.77925 | AU23: 19347.38663 | AV23: 25133.19637 | AW23: 32191.236 | AX23: 15425.35313 | AY23: 19824.32812 | AZ23: 35843.54288 | BA23: 47415.16238 | BB23: 61531.24163 | BO23: 105.156818 | BP23: 157.7352269 | BQ23: 157.7352269 | BR23: 1104.146589 | BS23: 2300.831177 | BT23: 15.56320906
A24: VRT6 | B24: JGN | AM24: 187.567182 | AN24: 156.5553804 | AO24: 99.26792068 | AP24: 85.4371904 | AQ24: 85.40941227 | AR24: 70.92305325 | AS24: 9138.29175 | AT24: 11337.77925 | AU24: 19347.38663 | AV24: 25133.19637 | AW24: 32191.236 | AX24: 15425.35313 | AY24: 19824.32812 | AZ24: 35843.54288 | BA24: 47415.16238 | BB24: 61531.24163 | BO24: 105.156818 | BP24: 157.7352269 | BQ24: 157.7352269 | BR24: 1104.146589 | BS24: 2300.831177 | BT24: 15.56320906
A25: VRT10 | B25: JGN | AM25: 292.681576 | AN25: 244.2904723 | AO25: 147.0046348 | AP25: 115.5847935 | AQ25: 101.4735041 | AR25: 94.61732175 | AS25: 9138.29175 | AT25: 11337.77925 | AU25: 19347.38663 | AV25: 25133.19637 | AW25: 32191.236 | AX25: 15425.35313 | AY25: 19824.32812 | AZ25: 35843.54288 | BA25: 47415.16238 | BB25: 61531.24163 | BO25: 105.156818 | BP25: 157.7352269 | BQ25: 157.7352269 | BR25: 1104.146589 | BS25: 2300.831177 | BT25: 15.56320906
A27: End

Sheet Input|2018-19 tariffs
A1: =Index!$C$1 -> JGN Reference tariffs and customer outcomes
A2: =Index!$C$26 -> Input|2018-19 tariffs
A5: Copyright Jemena Limited. All rights reserved. Jemena is not liable for any loss caused by reliance on this document.
A7: Haulague and Reference Tariffs
A9: Tariff Type | D9: Demand Capacity | J9: Demand Capacity Distance | P9: Pressure Reduction | V9: Demand Throughput - DT | Y9: Demand Throughput - DMT | AC9: Metering - Single Meter | AH9: Metering Double Meter | AM9: Volume Residential Distributed Generated Technology - VRT | AS9: VRT Metering - Single Meter | AX9: VRT Metering Double Meter | BC9: Volume Boundary Meter - VB | BH9: Volume Individual Meter- VI | BO9: Ancillary Charges
A10: Tariff Block | D10: Block 1 | E10: Block 2 | F10: Block 3 | G10: Block 4 | H10: Block 5 | I10: Block 6 | J10: Block 1 | K10: Block 2 | L10: Block 3 | M10: Block 4 | N10: Block 5 | O10: Block 6 | P10: Block 1 | Q10: Block 2 | R10: Block 3 | S10: Block 4 | T10: Block 5 | U10: Block 6 | V10: Block 1 | W10: Block 2 | X10: Block 3 | Y10: Fixed | Z10: Block 1 | AA10: Block 2 | AB10: Block 3 | AC10: MHQ < 10 GJ/hr | AD10: 10 to < 50 GJ/hr | AE10: 50 to < 100 GJ/hr | AF10: 100 to < 1000 GJ/hr | AG10: 1000GJ/hr and greater | AH10: MHQ < 10 GJ/hr | AI10: 10 to < 50 GJ/hr | AJ10: 50 to < 100 GJ/hr | AK10: 100 to < 1000 GJ/hr | AL10: 1000GJ/hr and greater | AM10: Block 1 | AN10: Block 2 | AO10: Block 3 | AP10: Block 4 | AQ10: Block 5 | AR10: Block 6 | AS10: MHQ < 10 GJ/hr | AT10: 10 to < 50 GJ/hr | AU10: 50 to < 100 GJ/hr | AV10: 100 to < 1000 GJ/hr | AW10: 1000GJ/hr and greater | AX10: MHQ < 10 GJ/hr | AY10: 10 to < 50 GJ/hr | AZ10: 50 to < 100 GJ/hr | BA10: 100 to < 1000 GJ/hr | BB10: 1000GJ/hr and greater | BC10: Fixed charge | BD10: Block 1 | BE10: Block 2 | BF10: Block 3 | BG10: Block 4 | BH10: Fixed charge | BI10: Block 1 | BJ10: Block 2 | BK10: Block 3 | BL10: Block 4 | BM10: Block 5 | BN10: Block 6 | BO10: Requests For Service | BP10: Disconnections Small Meters | BQ10: Temporary Disconnections Large Meters | BR10: Decommission small meter | BS10: Decommission large meter | BT10: Special Meter Reads
A11: Unit | D11: $/GJ of CD pa | E11: $/GJ of CD pa | F11: $/GJ of CD pa | G11: $/GJ of CD pa | H11: $/GJ of CD pa | I11: $/GJ of CD pa | J11: $/GJ of CD x dist | K11: $/GJ of CD x dist | L11: $/GJ of CD x dist | M11: $/GJ of CD x dist | N11: $/GJ of CD x dist | O11: $/GJ of CD x dist | P11: $/GJ of CD pa | Q11: $/GJ of CD pa | R11: $/GJ of CD pa | S11: $/GJ of CD pa | T11: $/GJ of CD pa | U11: $/GJ of CD pa | V11: $/GJ | W11: $/GJ | X11: $/GJ | Y11: $/Year | Z11: $/GJ | AA11: $/GJ | AB11: $/GJ | AC11: $/Year | AD11: $/Year | AE11: $/Year | AF11: $/Year | AG11: $/Year | AH11: $/Year | AI11: $/Year | AJ11: $/Year | AK11: $/Year | AL11: $/Year | AM11: $/GJ of CD pa | AN11: $/GJ of CD pa | AO11: $/GJ of CD pa | AP11: $/GJ of CD pa | AQ11: $/GJ of CD pa | AR11: $/GJ of CD pa | AS11: $/Year | AT11: $/Year | AU11: $/Year | AV11: $/Year | AW11: $/Year | AX11: $/Year | AY11: $/Year | AZ11: $/Year | BA11: $/Year | BB11: $/Year | BC11: $/Year | BD11: $/GJ | BE11: $/GJ | BF11: $/GJ | BG11: $/GJ | BH11: $/Year | BI11: $/GJ | BJ11: $/GJ | BK11: $/GJ | BL11: $/GJ | BM11: $/GJ | BN11: $/GJ | BO11: $/Hr | BP11: $/Disconnection/Meter set | BQ11: $/Disconnection/Meter set | BR11: $/Decommission/Meter | BS11: $/Decommission/Meter | BT11: $/Meter read
A13: Volume Individual Meter
A14: VI Coastal | B14: JGN | BH14: 51.33516735 | BI14: 24.42529278 | BJ14: 19.36430122 | BK14: 9.516793863 | BL14: 9.505866438 | BM14: 8.437027689 | BN14: 4.958204871 | BO14: 107.8341089 | BP14: 161.7511634 | BQ14: 161.7511634 | BR14: 1132.258144 | BS14: 2359.410303 | BT14: 15.95944812
A15: VI Country | B15: JGN | BH15: 51.33516735 | BI15: 23.93852566 | BJ15: 18.91568278 | BK15: 9.208839155 | BL15: 9.198905132 | BM15: 8.119762346 | BN15: 4.729722346 | BO15: 107.8341089 | BP15: 161.7511634 | BQ15: 161.7511634 | BR15: 1132.258144 | BS15: 2359.410303 | BT15: 15.95944812
A17: Volume Boundary Meter
A18: VB Coastal | B18: JGN | BC18: 1540.05502 | BD18: 21.9827635 | BE18: 17.42787109 | BF18: 8.565114476 | BG18: 8.555279794 | BO18: 107.8341089 | BP18: 161.7511634 | BQ18: 161.7511634 | BR18: 1132.258144 | BS18: 2359.410303 | BT18: 15.95944812
A19: VB Country | B19: JGN | BC19: 1540.05502 | BD19: 21.5446731 | BE19: 17.0241145 | BF19: 8.28795524 | BG19: 8.279014619 | BO19: 107.8341089 | BP19: 161.7511634 | BQ19: 161.7511634 | BR19: 1132.258144 | BS19: 2359.410303 | BT19: 15.95944812
A21: Volume Residential Distributed Generated Technology
A22: VRT3 | B22: JGN | AM22: 599.6895036 | AN22: 468.4006938 | AO22: 280.4046509 | AP22: 203.3808697 | AQ22: 171.2554592 | AR22: 133.1295375 | AS22: 9595.206338 | AT22: 11904.66821 | AU22: 20314.75596 | AV22: 26389.85619 | AW22: 33800.7978 | AX22: 16196.62078 | AY22: 20815.54453 | AZ22: 37635.72002 | BA22: 49785.92049 | BB22: 64607.80371 | BO22: 107.8341089 | BP22: 161.7511634 | BQ22: 161.7511634 | BR22: 1132.258144 | BS22: 2359.410303 | BT22: 15.95944812
A23: VRT4 | B23: JGN | AM23: 989.4592774 | AN23: 772.8389596 | AO23: 444.1598919 | AP23: 314.1999537 | AQ23: 260.9063711 | AR23: 201.5746945 | AS23: 9595.206338 | AT23: 11904.66821 | AU23: 20314.75596 | AV23: 26389.85619 | AW23: 33800.7978 | AX23: 16196.62078 | AY23: 20815.54453 | AZ23: 37635.72002 | BA23: 49785.92049 | BB23: 64607.80371 | BO23: 107.8341089 | BP23: 161.7511634 | BQ23: 161.7511634 | BR23: 1132.258144 | BS23: 2359.410303 | BT23: 15.95944812
A24: VRT6 | B24: JGN | AM24: 206.3239002 | AN24: 161.1538261 | AO24: 102.1836821 | AP24: 87.94670673 | AQ24: 87.91811268 | AR24: 74.46920591 | AS24: 9595.206338 | AT24: 11904.66821 | AU24: 20314.75596 | AV24: 26389.85619 | AW24: 33800.7978 | AX24: 16196.62078 | AY24: 20815.54453 | AZ24: 37635.72002 | BA24: 49785.92049 | BB24: 64607.80371 | BO24: 107.8341089 | BP24: 161.7511634 | BQ24: 161.7511634 | BR24: 1132.258144 | BS24: 2359.410303 | BT24: 15.95944812
A25: VRT10 | B25: JGN | AM25: 321.9497336 | AN25: 251.4659298 | AO25: 151.3225499 | AP25: 118.9798247 | AQ25: 104.4540494 | AR25: 99.34818784 | AS25: 9595.206338 | AT25: 11904.66821 | AU25: 20314.75596 | AV25: 26389.85619 | AW25: 33800.7978 | AX25: 16196.62078 | AY25: 20815.54453 | AZ25: 37635.72002 | BA25: 49785.92049 | BB25: 64607.80371 | BO25: 107.8341089 | BP25: 161.7511634 | BQ25: 161.7511634 | BR25: 1132.258144 | BS25: 2359.410303 | BT25: 15.95944812
A27: End

Sheet Input|2019-20 tariffs
A1: =Index!$C$1 -> JGN Reference tariffs and customer outcomes
A2: =Index!$C$27 -> Input|2019-20 tariffs
A5: Copyright Jemena Limited. All rights reserved. Jemena is not liable for any loss caused by reliance on this document.
A7: Haulague and Reference Tariffs
A9: Tariff Type | D9: Demand Capacity | J9: Demand Capacity Distance | P9: Pressure Reduction | V9: Demand Throughput - DT | Y9: Demand Throughput - DMT | AC9: Metering - Single Meter | AH9: Metering Double Meter | AM9: Volume Residential Distributed Generated Technology - VRT | AS9: VRT Metering - Single Meter | AX9: VRT Metering Double Meter | BC9: Volume Boundary Meter - VB | BH9: Volume Individual Meter- VI | BO9: Ancillary Charges
A10: Tariff Block | D10: Block 1 | E10: Block 2 | F10: Block 3 | G10: Block 4 | H10: Block 5 | I10: Block 6 | J10: Block 1 | K10: Block 2 | L10: Block 3 | M10: Block 4 | N10: Block 5 | O10: Block 6 | P10: Block 1 | Q10: Block 2 | R10: Block 3 | S10: Block 4 | T10: Block 5 | U10: Block 6 | V10: Block 1 | W10: Block 2 | X10: Block 3 | Y10: Fixed | Z10: Block 1 | AA10: Block 2 | AB10: Block 3 | AC10: MHQ < 10 GJ/hr | AD10: 10 to < 50 GJ/hr | AE10: 50 to < 100 GJ/hr | AF10: 100 to < 1000 GJ/hr | AG10: 1000GJ/hr and greater | AH10: MHQ < 10 GJ/hr | AI10: 10 to < 50 GJ/hr | AJ10: 50 to < 100 GJ/hr | AK10: 100 to < 1000 GJ/hr | AL10: 1000GJ/hr and greater | AM10: Block 1 | AN10: Block 2 | AO10: Block 3 | AP10: Block 4 | AQ10: Block 5 | AR10: Block 6 | AS10: MHQ < 10 GJ/hr | AT10: 10 to < 50 GJ/hr | AU10: 50 to < 100 GJ/hr | AV10: 100 to < 1000 GJ/hr | AW10: 1000GJ/hr and greater | AX10: MHQ < 10 GJ/hr | AY10: 10 to < 50 GJ/hr | AZ10: 50 to < 100 GJ/hr | BA10: 100 to < 1000 GJ/hr | BB10: 1000GJ/hr and greater | BC10: Fixed charge | BD10: Block 1 | BE10: Block 2 | BF10: Block 3 | BG10: Block 4 | BH10: Fixed charge | BI10: Block 1 | BJ10: Block 2 | BK10: Block 3 | BL10: Block 4 | BM10: Block 5 | BN10: Block 6 | BO10: Requests For Service | BP10: Disconnections Small Meters | BQ10: Temporary Disconnections Large Meters | BR10: Decommission small meter | BS10: Decommission large meter | BT10: Special Meter Reads
A11: Unit | D11: $/GJ of CD pa | E11: $/GJ of CD pa | F11: $/GJ of CD pa | G11: $/GJ of CD pa | H11: $/GJ of CD pa | I11: $/GJ of CD pa | J11: $/GJ of CD x dist | K11: $/GJ of CD x dist | L11: $/GJ of CD x dist | M11: $/GJ of CD x dist | N11: $/GJ of CD x dist | O11: $/GJ of CD x dist | P11: $/GJ of CD pa | Q11: $/GJ of CD pa | R11: $/GJ of CD pa | S11: $/GJ of CD pa | T11: $/GJ of CD pa | U11: $/GJ of CD pa | V11: $/GJ | W11: $/GJ | X11: $/GJ | Y11: $/Year | Z11: $/GJ | AA11: $/GJ | AB11: $/GJ | AC11: $/Year | AD11: $/Year | AE11: $/Year | AF11: $/Year | AG11: $/Year | AH11: $/Year | AI11: $/Year | AJ11: $/Year | AK11: $/Year | AL11: $/Year | AM11: $/GJ of CD pa | AN11: $/GJ of CD pa | AO11: $/GJ of CD pa | AP11: $/GJ of CD pa | AQ11: $/GJ of CD pa | AR11: $/GJ of CD pa | AS11: $/Year | AT11: $/Year | AU11: $/Year | AV11: $/Year | AW11: $/Year | AX11: $/Year | AY11: $/Year | AZ11: $/Year | BA11: $/Year | BB11: $/Year | BC11: $/Year | BD11: $/GJ | BE11: $/GJ | BF11: $/GJ | BG11: $/GJ | BH11: $/Year | BI11: $/GJ | BJ11: $/GJ | BK11: $/GJ | BL11: $/GJ | BM11: $/GJ | BN11: $/GJ | BO11: $/Hr | BP11: $/Disconnection/Meter set | BQ11: $/Disconnection/Meter set | BR11: $/Decommission/Meter | BS11: $/Decommission/Meter | BT11: $/Meter read
A13: Volume Individual Meter
A14: VI Coastal | B14: JGN | BH14: 51.22201983 | BI14: 24.37145715 | BJ14: 18.72467614 | BK14: 9.495817957 | BL14: 9.484914617 | BM14: 8.418431689 | BN14: 4.947276523 | BO14: 110.5795636 | BP14: 165.8693455 | BQ14: 165.8693455 | BR14: 1161.085418 | BS14: 2419.480852 | BT14: 16.36577542
A15: VI Country | B15: JGN | BH15: 51.22201983 | BI15: 23.88576291 | BJ15: 18.29087609 | BK15: 9.18854201 | BL15: 9.178629883 | BM15: 8.101865629 | BN15: 4.719297595 | BO15: 110.5795636 | BP15: 165.8693455 | BQ15: 165.8693455 | BR15: 1161.085418 | BS15: 2419.480852 | BT15: 16.36577542
A17: Volume Boundary Meter
A18: VB Coastal | B18: JGN | BC18: 1536.660595 | BD18: 21.93431143 | BE18: 16.85220853 | BF18: 8.546236161 | BG18: 8.536423155 | BO18: 110.5795636 | BP18: 165.8693455 | BQ18: 165.8693455 | BR18: 1161.085418 | BS18: 2419.480852 | BT18: 16.36577542
A19: VB Country | B19: JGN | BC19: 1536.660595 | BD19: 21.49718662 | BE19: 16.46178848 | BF19: 8.269687809 | BG19: 8.260766895 | BO19: 110.5795636 | BP19: 165.8693455 | BQ19: 165.8693455 | BR19: 1161.085418 | BS19: 2419.480852 | BT19: 16.36577542
A21: Volume Residential Distributed Generated Technology
A22: VRT3 | B22: JGN | AM22: 659.658454 | AN22: 481.5981656 | AO22: 288.3052209 | AP22: 209.1112482 | AQ22: 176.080685 | AR22: 139.7860144 | AS22: 10074.96665 | AT22: 12499.90162 | AU22: 21330.49375 | AV22: 27709.349 | AW22: 35490.83769 | AX22: 17006.45182 | AY22: 21856.32176 | AZ22: 39517.50602 | BA22: 52275.21652 | BB22: 67838.19389 | BO22: 110.5795636 | BP22: 165.8693455 | BQ22: 165.8693455 | BR22: 1161.085418 | BS22: 2419.480852 | BT22: 16.36577542
A23: VRT4 | B23: JGN | AM23: 1088.405205 | AN23: 794.6141629 | AO23: 456.6743645 | AP23: 323.0527267 | AQ23: 268.2575653 | AR23: 211.6534292 | AS23: 10074.96665 | AT23: 12499.90162 | AU23: 21330.49375 | AV23: 27709.349 | AW23: 35490.83769 | AX23: 17006.45182 | AY23: 21856.32176 | AZ23: 39517.50602 | BA23: 52275.21652 | BB23: 67838.19389 | BO23: 110.5795636 | BP23: 165.8693455 | BQ23: 165.8693455 | BR23: 1161.085418 | BS23: 2419.480852 | BT23: 16.36577542
A24: VRT6 | B24: JGN | AM24: 226.9562902 | AN24: 165.6944323 | AO24: 105.0627689 | AP24: 90.42465818 | AQ24: 90.39525847 | AR24: 78.19266621 | AS24: 10074.96665 | AT24: 12499.90162 | AU24: 21330.49375 | AV24: 27709.349 | AW24: 35490.83769 | AX24: 17006.45182 | AY24: 21856.32176 | AZ24: 39517.50602 | BA24: 52275.21652 | BB24: 67838.19389 | BO24: 110.5795636 | BP24: 165.8693455 | BQ24: 165.8693455 | BR24: 1161.085418 | BS24: 2419.480852 | BT24: 16.36577542
A25: VRT10 | B25: JGN | AM25: 354.144707 | AN25: 258.5511338 | AO25: 155.5861539 | AP25: 122.3321529 | AQ25: 107.3971052 | AR25: 104.3155972 | AS25: 10074.96665 | AT25: 12499.90162 | AU25: 21330.49375 | AV25: 27709.349 | AW25: 35490.83769 | AX25: 17006.45182 | AY25: 21856.32176 | AZ25: 39517.50602 | BA25: 52275.21652 | BB25: 67838.19389 | BO25: 110.5795636 | BP25: 165.8693455 | BQ25: 165.8693455 | BR25: 1161.085418 | BS25: 2419.480852 | BT25: 16.36577542
A27: End

Sheet Input|Escalators
C1: =Index!$C$1 -> JGN Reference tariffs and customer outcomes | D1: =Index!$C$27 -> Input|2019-20 tariffs | E1: =Index!$C$27 -> Input|2019-20 tariffs
C2: =Index!$C$28 -> Input|Escalators | D2: =Index!$C$27 -> Input|2019-20 tariffs | E2: =Index!$C$27 -> Input|2019-20 tariffs
J3: Historical Period | M3: Base Year | N3: Forecast Period
D4: Source | E4: Unit | F4: Basis | G4: Jul to Jun | J4: 2011 | K4: 2012 | L4: 2013 | M4: 2014 | N4: 2015 | O4: 2016 | P4: 2017 | Q4: 2018 | R4: 2019 | S4: 2020
B6: Copyright Jemena Limited. All rights reserved. Jemena is not liable for any loss caused by reliance on this document.
B8: Input | Inflation
C10: Inflation | J10: Australian Burean of Statistics (ABS) Data | N10: RBA Fcast | O10: JGN Forecast (estimated using AER's preferred approach)
J11: ="RY"&RIGHT(J$4,2) -> RY11 | K11: ="RY"&RIGHT(K$4,2) -> RY12 | L11: ="RY"&RIGHT(L$4,2) -> RY13 | M11: ="RY"&RIGHT(M$4,2) -> RY14 | N11: RY15 | O11: RY16 | P11: RY17 | Q11: RY18 | R11: RY19 | S11: RY20
C12: Inflation Rate | D12: ABS / RBA / JGN | E12: 0 | J12: 0.02654867257 | K12: 0.03103448276 | L12: 0.02204408818 | M12: 0.02745098039 | N12: 0.03 | O12: 0.0254599844 | P12: 0.0254599844 | Q12: 0.0254599844 | R12: 0.0254599844 | S12: 0.0254599844
C14: Source (actuals): ABS, all groups CPI inflation series A2325846C, weighted average for the eight capital cities (Dec quarter). CPI index was rebased between the Jun 2012 and Sep 2012 releases.
C15: Source (forecast): RBA, Statement on Monetary Policy, 9 May 2014, p. 66.
C17: CPI indexes (real to nominal)
C19: Real 2010 | D19: Calculated | E19: factor | I19: 1 | J19: =I19*(1+J$12) -> 1.026548673 | K19: =J19*(1+K$12) -> 1.05840708 | L19: 1.081738699 | M19: 1.111433486 | N19: 1.144776491 | O19: 1.173922483 | P19: 1.203810531 | Q19: 1.234459528 | R19: 1.265888848 | S19: 1.298118359
C20: Real 2011 | D20: Calculated | E20: factor | I20: =J20/(1+I$12) -> 1 | J20: 1 | K20: 1.031034483 | L20: 1.053762698 | M20: 1.082689517 | N20: 1.115170202 | O20: 1.143562418 | P20: 1.1726775 | Q20: 1.202533851 | R20: 1.233150344 | S20: 1.264546332
C21: Real 2012 | D21: Calculated | E21: factor | I21: =J21/(1+I$12) -> 0.9698996656 | J21: =K21/(1+K$12) -> 0.9698996656 | K21: 1 | L21: 1.022044088 | M21: 1.0501002 | N21: 1.081603206 | O21: 1.109140807 | P21: 1.137379515 | Q21: 1.16633718 | R21: 1.196032106 | S21: 1.226483065
C22: Real 2013 | D22: Calculated | E22: factor | I22: =J22/(1+I$12) -> 0.948980261 | J22: =K22/(1+K$12) -> 0.948980261 | K22: 0.9784313725 | L22: 1 | M22: 1.02745098 | N22: 1.05827451 | O22: 1.085218162 | P22: 1.1128478 | Q22: 1.141180887 | R22: 1.170235335 | S22: 1.200029508
C23: Real 2014 | D23: Calculated | E23: factor | I23: =J23/(1+I$12) -> 0.9236258265 | J23: 0.9236258265 | K23: 0.9522900763 | L23: 0.9732824427 | M23: 1 | N23: 1.03 | O23: 1.056223784 | P23: 1.083115225 | Q23: 1.110691322 | R23: 1.138969505 | S23: 1.167967651
C24: Real 2015 | D24: Calculated | E24: factor | I24: =J24/(1+I$12) -> 0.8967241034 | J24: 0.8967241034 | K24: 0.9245534722 | L24: 0.9449344104 | M24: 0.9708737864 | N24: 1 | O24: 1.025459984 | P24: 1.05156818 | Q24: 1.078341089 | R24: 1.105795636 | S24: 1.133949176
C25: Nominal | D25: Calculated | E25: factor | J25: 1 | K25: 1 | L25: 1 | M25: 1 | N25: 1 | O25: 1 | P25: 1 | Q25: 1 | R25: 1 | S25: 1
C27: CPI indexes (nominal to real)
C29: Real 2010 | D29: Calculated | E29: factor | J29: =1/J$19 -> 0.974137931 | K29: =1/K$19 -> 0.9448160535 | L29: 0.924437668 | M29: 0.8997389517 | N29: 0.8735329628 | O29: 0.8518450024 | P29: 0.8306955077 | Q29: 0.8100711099 | R29: 0.7899587719 | S29: 0.7703457803
C30: Real 2011 | D30: Calculated | E30: factor | J30: =1/J$20 -> 1 | K30: =1/K$20 -> 0.9698996656 | L30: 0.948980261 | M30: 0.9236258265 | N30: 0.8967241034 | O30: 0.8744603564 | P30: 0.8527493707 | Q30: 0.8315774225 | R30: 0.8109311286 | S30: 0.7907974382
C31: Real 2012 | D31: Calculated | E31: factor | J31: =1/J$21 -> 1.031034483 | K31: =1/K$21 -> 1 | L31: 0.9784313725 | M31: 0.9522900763 | N31: 0.9245534722 | O31: 0.9015987813 | P31: 0.8792140064 | Q31: 0.8573849977 | R31: 0.8360979568 | S31: 0.8153394277
C32: Real 2013 | D32: Calculated | E32: factor | J32: =1/J$22 -> 1.053762698 | K32: =1/K$22 -> 1.022044088 | L32: 1 | M32: 0.9732824427 | N32: 0.9449344104 | O32: 0.9214737043 | P32: 0.8985954775 | Q32: 0.8762852682 | R32: 0.8545289738 | S32: 0.8333128419
C33: Real 2014 | D33: Calculated | E33: factor | J33: =1/J$23 -> 1.082689517 | K33: =1/K$23 -> 1.0501002 | L33: 1.02745098 | M33: 1 | N33: 0.9708737864 | O33: 0.9467690609 | P33: 0.9232628043 | Q33: 0.9003401579 | R33: 0.877986632 | S33: 0.8561880964
C34: Real 2015 | D34: Calculated | E34: factor | J34: =1/J$24 -> 1.115170202 | K34: =1/K$24 -> 1.081603206 | L34: 1.05827451 | M34: 1.03 | N34: 1 | O34: 0.9751721327 | P34: 0.9509606884 | Q34: 0.9273503626 | R34: 0.9043262309 | S34: 0.8818737393
C35: =Nominal -> Nominal | D35: Calculated | E35: factor | J35: =1/J$25 -> 1 | K35: =1/K$25 -> 1 | L35: 1 | M35: 1 | N35: 1 | O35: 1 | P35: 1 | Q35: 1 | R35: 1 | S35: 1
B37: End

Sheet Input|2014-15 calcs
C1: =Index!$C$1 -> JGN Reference tariffs and customer outcomes
C2: =Index!$C$29 -> Input|2014-15 calcs
D4: Source | E4: Unit | F4: Basis
B6: Copyright Jemena Limited. All rights reserved. Jemena is not liable for any loss caused by reliance on this document.
B8: Input | Haulague and Reference Tariffs
E10: 15 | F10: 18 | G10: 69 | H10: 900 | I10: 4002 | J10: rest
E11: Block 1_GJ | F11: Block 2_GJ | G11: Block 3_GJ | H11: Block 4_GJ | I11: Block 5_GJ | J11: Block 6_GJ | K11: fixed | L11: fixed meter | M11: variable meter | N11: mr q | O11: mr monthly
D12: 2014/15 coastal | E12: 24.141 | F12: 9.42 | G12: 9.056 | H12: 8.862 | I12: 7.722 | J12: 4.218 | K12: 30.97 | L12: 13.9 | M12: 0.504 | N12: 4.629 | O12: 48.93
D13: 2014/15 country | E13: 23.683 | F13: 9.11 | G13: 8.749 | H13: 8.551 | I13: 7.414 | J13: 4 | K13: =K12 -> 30.97 | L13: =L12 -> 13.9 | M13: 0.504 | N13: 4.629 | O13: 48.93
D15: Avg Load | Q15: Revenue
C16: coastal | D16: 5 | E16: 5 | Q16: =SUMPRODUCT(E16:J16,$E$12:$J$12)+$K$12+$L$12+$N$12 -> 170.204
C17: coastal | D17: 15 | E17: 15 | Q17: =SUMPRODUCT(E17:J17,$E$12:$J$12)+$K$12+$L$12+$N$12 -> 411.614
C18: coastal | D18: 25 | E18: 15 | F18: 10 | Q18: =SUMPRODUCT(E18:J18,$E$12:$J$12)+$K$12+$L$12+$N$12 -> 505.814
C19: country | D19: 50 | E19: 15 | F19: 18 | G19: 17 | Q19: =SUMPRODUCT(E19:J19,$E$13:$J$13)+$K$13+$L$13+$N$13 -> 717.457
C20: coastal | D20: 90 | E20: 15 | F20: 18 | G20: 57 | Q20: =SUMPRODUCT(E20:J20,$E$12:$J$12)+$K$12+$L$12+$N$12 -> 1097.366
C22: coastal | D22: 200 | E22: 15 | F22: 18 | G22: 69 | H22: =D22-SUM(E22:G22) -> 98 | Q22: =SUMPRODUCT(E22:J22,$E$12:$J$12)+$K$12+$M$12*D22+$N$12 -> 2161.414
C23: coastal | D23: 2000 | E23: 15 | F23: 18 | G23: 69 | H23: 900 | I23: =D23-SUM(E23:H23) -> 998 | Q23: =SUMPRODUCT(E23:J23,$E$12:$J$12)+$K$12+$M$12*D23+$O$12 -> 17926.795
C24: coastal | D24: 8000 | E24: 15 | F24: 18 | G24: 69 | H24: 900 | I24: =I10 -> 4002 | J24: =D24-SUM(E24:I24) -> 2996 | Q24: =SUMPRODUCT(E24:J24,$E$12:$J$12)+$K$12+$M$12*D24+$O$12 -> 56784.811
B26: End

Sheet Calc|Customer outcomes
C1: =Index!$C$1 -> JGN Reference tariffs and customer outcomes | D1: =Index!$C$1 -> JGN Reference tariffs and customer outcomes | E1: =Index!$C$1 -> JGN Reference tariffs and customer outcomes
C2: =Index!$C$30 -> Calc|Customer outcomes | D2: =Index!$C$29 -> Input|2014-15 calcs | E2: =Index!$C$29 -> Input|2014-15 calcs
D4: Source | E4: Unit | F4: Basis
B6: Copyright Jemena Limited. All rights reserved. Jemena is not liable for any loss caused by reliance on this document.
B8: Revenue
C10: 2014/15 | D10: Source | G10: Avg Load | H10: Block 1_GJ | I10: Block 2_GJ | J10: Block 3_GJ | K10: Block 4_GJ | L10: Block 5_GJ | M10: Block 6_GJ | N10: Revenue
C11: Archetype
C12: Small Residential | D12: JGN | G12: 15 | H12: 7.56 | I12: 7.44 | J12: 0 | K12: 0 | L12: 0 | M12: 0 | N12: ='Input|2014-15 calcs'!Q17 -> 411.614
C13: Commercial | D13: JGN | G13: 2000 | H13: 7.56 | I13: 7.44 | J13: 18 | K13: 969 | L13: 998 | M13: 0 | N13: ='Input|2014-15 calcs'!Q23 -> 17926.795
C15: 2015/16 | G15: Avg Load | H15: Block 1_GJ | I15: Block 2_GJ | J15: Block 3_GJ | K15: Block 4_GJ | L15: Block 5_GJ | M15: Block 6_GJ | N15: Revenue
C16: Archetype
C17: Small Residential | D17: JGN | G17: 15 | H17: 7.56 | I17: 7.44 | J17: 0 | K17: 0 | L17: 0 | M17: 0 | N17: =SUMPRODUCT(H17:M17,'Input|2015-16 tariffs'!$BI$14:$BN$14)+'Input|2015-16 tariffs'!$BH$14 -> 394.917496
C18: Commercial | D18: JGN | G18: 2000 | H18: 7.56 | I18: 7.44 | J18: 18 | K18: 969 | L18: 998 | M18: 0 | N18: =SUMPRODUCT(H18:M18,'Input|2015-16 tariffs'!$BI$14:$BN$14)+'Input|2015-16 tariffs'!$BH$14 -> 18315.79489
C20: 2016/17 | G20: Avg Load | H20: Block 1_GJ | I20: Block 2_GJ | J20: Block 3_GJ | K20: Block 4_GJ | L20: Block 5_GJ | M20: Block 6_GJ | N20: Revenue
C21: Archetype
C22: Small Residential | D22: JGN | G22: 15 | H22: 7.56 | I22: 7.44 | J22: 0 | K22: 0 | L22: 0 | M22: 0 | N22: =SUMPRODUCT(H22:M22,'Input|2016-17 tariffs'!$BI$14:$BN$14)+'Input|2016-17 tariffs'!$BH$14 -> 390.172435
C23: Commercial | D23: JGN | G23: 2000 | H23: 7.56 | I23: 7.44 | J23: 18 | K23: 969 | L23: 998 | M23: 0 | N23: =SUMPRODUCT(H23:M23,'Input|2016-17 tariffs'!$BI$14:$BN$14)+'Input|2016-17 tariffs'!$BH$14 -> 18271.55054
C25: 2017/18 | G25: Avg Load | H25: Block 1_GJ | I25: Block 2_GJ | J25: Block 3_GJ | K25: Block 4_GJ | L25: Block 5_GJ | M25: Block 6_GJ | N25: Revenue
C26: Archetype
C27: Small Residential | D27: JGN | G27: 15 | H27: 7.56 | I27: 7.44 | J27: 0 | K27: 0 | L27: 0 | M27: 0 | N27: =SUMPRODUCT(H27:M27,'Input|2017-18 tariffs'!$BI$14:$BN$14)+'Input|2017-18 tariffs'!$BH$14 -> 385.1653448
C28: Commercial | D28: JGN | G28: 2000 | H28: 7.56 | I28: 7.44 | J28: 18 | K28: 969 | L28: 998 | M28: 0 | N28: =SUMPRODUCT(H28:M28,'Input|2017-18 tariffs'!$BI$14:$BN$14)+'Input|2017-18 tariffs'!$BH$14 -> 18227.13121
C30: 2018/19 | G30: Avg Load | H30: Block 1_GJ | I30: Block 2_GJ | J30: Block 3_GJ | K30: Block 4_GJ | L30: Block 5_GJ | M30: Block 6_GJ | N30: Revenue
C31: Archetype
C32: Small Residential | D32: JGN | G32: 15 | H32: 7.56 | I32: 7.44 | J32: 0 | K32: 0 | L32: 0 | M32: 0 | N32: =SUMPRODUCT(H32:M32,'Input|2018-19 tariffs'!$BI$14:$BN$14)+'Input|2018-19 tariffs'!$BH$14 -> 380.0607818
C33: Medium I&C | D33: JGN | G33: 2000 | H33: 7.56 | I33: 7.44 | J33: 18 | K33: 969 | L33: 998 | M33: 0 | N33: =SUMPRODUCT(H33:M33,'Input|2018-19 tariffs'!$BI$14:$BN$14)+'Input|2018-19 tariffs'!$BH$14 -> 18182.70128
C35: 2019/20 | G35: Avg Load | H35: Block 1_GJ | I35: Block 2_GJ | J35: Block 3_GJ | K35: Block 4_GJ | L35: Block 5_GJ | M35: Block 6_GJ | N35: Revenue
C36: Archetype
C37: Small Residential | D37: JGN | G37: 15 | H37: 7.56 | I37: 7.44 | J37: 0 | K37: 0 | L37: 0 | M37: 0 | N37: =SUMPRODUCT(H37:M37,'Input|2019-20 tariffs'!$BI$14:$BN$14)+'Input|2019-20 tariffs'!$BH$14 -> 374.7818264
C38: Medium I&C | D38: JGN | G38: 2000 | H38: 7.56 | I38: 7.44 | J38: 18 | K38: 969 | L38: 998 | M38: 0 | N38: =SUMPRODUCT(H38:M38,'Input|2019-20 tariffs'!$BI$14:$BN$14)+'Input|2019-20 tariffs'!$BH$14 -> 18138.18364
B40: Customer outcomes
C42: Customer Outcomes | D42: Source | E42: Unit | F42: Basis | H42: RY15 | I42: RY16 | J42: RY17 | K42: RY18 | L42: RY19 | M42: RY20 | N42: Total
C44: Small Residential - 15 GJ pa | D44: Calculated | E44: Above | F44: Nominal | H44: =N12 -> 411.614 | I44: =N17 -> 394.917496 | J44: =N22 -> 390.172435 | K44: =N27 -> 385.1653448 | L44: =N32 -> 380.0607818 | M44: =N37 -> 374.7818264
D45: Calculated | E45: $ per annum | F45: Nominal | I45: =I44-$H$44 -> -16.696504 | J45: =J44-$H$44 -> -21.44156504 | K45: =K44-$H$44 -> -26.44865515 | L45: =L44-$H$44 -> -31.55321818 | M45: =M44-$H$44 -> -36.83217364 | N45: =SUM(I45:M45) -> -132.972116
D46: Calculated | E46: per cent | F46: Nominal | I46: =I44/H44-1 -> -0.04056349882 | J46: =J44/I44-1 -> -0.0120153224 | K46: -0.0128330186 | L46: -0.01325291358 | M46: -0.01388976635 | N46: =M44/H44-1 -> -0.08948231508
C48: Medium I&C- 2000 GJ pa | D48: Calculated | E48: $ per annum | F48: Nominal | H48: =N13 -> 17926.795 | I48: =N18 -> 18315.79489 | J48: =N23 -> 18271.55054 | K48: =N28 -> 18227.13121 | L48: =N33 -> 18182.70128 | M48: =N38 -> 18138.18364
D49: Calculated | E49: $ per annum | F49: Nominal | I49: =I48-$H$48 -> 388.9998901 | J49: =J48-$H$48 -> 344.7555351 | K49: =K48-$H$48 -> 300.3362112 | L49: =L48-$H$48 -> 255.9062827 | M49: =M48-$H$48 -> 211.3886385 | N49: =SUM(I49:M49) -> 1501.386558
D50: Calculated | E50: per cent | F50: Nominal | I50: =I48/H48-1 -> 0.02169935508 | J50: =J48/I48-1 -> -0.002415639356 | K50: -0.002431064831 | L50: -0.002437571116 | M50: -0.002448351514 | N50: =M48/H48-1 -> 0.01179176972
C52: Industrial - DC1 customer with a CD of 402 and MHQ of 21 | D52: Calculated | E52: $ per annum | F52: Nominal | H52: 104975 | I52: 110328.725 | J52: 115955.49 | K52: 121869.22 | L52: 128084.5502 | M52: 134616.8622
D53: Calculated | E53: $ per annum | F53: Nominal | I53: =I52-$H$52 -> 5353.725 | J53: =J52-$H$52 -> 10980.48997 | K53: =K52-$H$52 -> 16894.21996 | L53: =L52-$H$52 -> 23109.55018 | M53: =M52-$H$52 -> 29641.86224 | N53: =SUM(I53:M53) -> 85979.84736
D54: Calculated | E54: per cent | F54: Nominal | I54: =I52/H52-1 -> 0.051 | J54: 0.051 | K54: 0.051 | L54: 0.051 | M54: 0.051 | N54: =M52/H52-1 -> 0.282370681
C56: Small Residential - 15 GJ pa | D56: Calculated | E56: $ per annum | F56: Real $2015 | H56: =H44 -> 411.614 | I56: =I44/'Input|Escalators'!O24 -> 385.1125368 | J56: =J44/'Input|Escalators'!P24 -> 371.0386474 | K56: =K44/'Input|Escalators'!Q24 -> 357.1832222 | L56: =L44/'Input|Escalators'!R24 -> 343.6989343 | M56: =M44/'Input|Escalators'!S24 -> 330.5102506
D57: Calculated | E57: $ per annum | F57: Real $2015 | I57: =I56-$H$56 -> -26.50146318 | J57: =J56-$H$56 -> -40.57535265 | K57: =K56-$H$56 -> -54.43077778 | L57: =L56-$H$56 -> -67.91506566 | M57: =M56-$H$56 -> -81.10374938 | N57: =SUM(I57:M57) -> -270.5264087
D58: Calculated | E58: per cent | F58: Real $2015 | I58: =I56/H56-1 -> -0.06438426094 | J58: =J56/I56-1 -> -0.03654487486 | K58: -0.03734226941 | L58: -0.03775173929 | M58: -0.03837278037 | N58: =M56/H56-1 -> -0.1970383645
C60: Medium I&C- 2000 GJ pa | D60: Calculated | E60: $ per annum | F60: Real $2015 | H60: =H48 -> 17926.795 | I60: =I48/'Input|Escalators'!O24 -> 17861.05277 | J60: =J48/'Input|Escalators'!P24 -> 17375.52628 | K60: =K48/'Input|Escalators'!Q24 -> 16902.93674 | L60: =L48/'Input|Escalators'!R24 -> 16443.09372 | M60: =M48/'Input|Escalators'!S24 -> 15995.58783
D61: Calculated | E61: $ per annum | F61: Real $2015 | I61: =I60-$H$60 -> -65.74223472 | J61: =J60-$H$60 -> -551.2687247 | K61: =K60-$H$60 -> -1023.858261 | L61: =L60-$H$60 -> -1483.701281 | M61: =M60-$H$60 -> -1931.207171 | N61: =SUM(I61:M61) -> -5055.777673
D62: Calculated | E62: per cent | F62: Real $2015 | I62: =I60/H60-1 -> -0.00366726092 | J62: =J60/I60-1 -> -0.02718353147 | K62: -0.02719857397 | L62: -0.02720491871 | M62: -0.02721543146 | N62: =M60/H60-1 -> -0.1077274087
C64: Industrial | D64: Calculated | E64: $ per annum | F64: Real $2015 | H64: 104975 | I64: =I52/'Input|Escalators'!O24 -> 107589.4981 | J64: =J52/'Input|Escalators'!P24 -> 110269.1126 | K64: =K52/'Input|Escalators'!Q24 -> 113015.4653 | L64: =L52/'Input|Escalators'!R24 -> 115830.2185 | M64: =M52/'Input|Escalators'!S24 -> 118715.0757
D65: Calculated | E65: $ per annum | F65: Real $2015 | I65: =I64-$H$64 -> 2614.498057 | J65: =J64-$H$64 -> 5294.112572 | K65: =K64-$H$64 -> 8040.465329 | L65: =L64-$H$64 -> 10855.2185 | M65: =M64-$H$64 -> 13740.07567 | N65: =SUM(I65:M65) -> 40544.37013
D66: Calculated | E66: per cent | F66: Real $2015 | I66: =I64/H64-1 -> 0.02490591148 | J66: 0.02490591148 | K66: 0.02490591148 | L66: 0.02490591148 | M66: 0.02490591148 | N66: =M64/H64-1 -> 0.1308890276
